Cogmind - Beta 14 @@@ ROGUE MODE // 2025.03.31 @ 20:28:12 Player: NeoBioHazard Result: Destroyed by G-34 Mercenary with Small Laser Performance ------------- Evolutions (0) 0 Regions Visited (1) 200 Robots Destroyed (18) 90 Value Destroyed (429) 429 Prototype IDs (0) 0 Alien Tech Used (0) 0 Bonus (0) 0 TOTAL SCORE: 719 Bonus ------- None Cogmind --------- Core Integrity 0/250 Matter 284/300 Energy 246/250 System Corruption 0% Temperature Warm (152) Movement Treading (160) Location -10/Materials Parts ------- > --- POWER (1) -------- Ion Engine > --- PROPULSION (2) --- Improved Treads Improved Treads > --- UTILITY (2) ------ Large Storage Unit Seismic Detector > --- WEAPON (2) ------- Medium Laser Improved Light Cannon > --- INVENTORY (15) --- Ion Engine Improved Treads Improved Treads Medium Laser Medium Laser Improved Light Cannon Improved Light Cannon Improved Light Cannon Peak State ------------ > --- POWER ------------ Ion Engine > --- PROPULSION ------- Improved Treads Improved Treads > --- UTILITY ---------- Small Storage Unit Seismic Detector > --- WEAPON ----------- Medium Laser Improved Light Cannon > --- INVENTORY -------- Light Ion Engine Improved Treads Improved Treads Medium Laser Medium Laser Medium Laser Medium Laser Light Assault Rifle [Rating: 11] Favorites ----------- Power Ion Engine Engine Ion Engine Propulsion Improved Treads Treads Improved Treads Leg Aluminum Leg Utility Small Storage Unit Device Seismic Detector Storage Small Storage Unit Weapon Medium Laser Energy Gun Medium Laser Ballistic Gun Light Assault Rifle Ballistic Cannon Improved Light Cannon Build | -11 -10 ------- Run | Yrd Mat Slots Evolved . | . . Power . | . . Propulsion . | . . Utility . | . . Weapon . | . . Parts Attached 20 | 8 12 Power 2 | 1 1 Engine 2 | 1 1 Core . | . . Reactor . | . . Propulsion 5 | 2 3 Treads 4 | 2 2 Leg 1 | . 1 Wheel . | . . Hover . | . . Flight . | . . Utility 5 | 2 3 Device 2 | 1 1 Storage 3 | 1 2 Processor . | . . Hackware . | . . Protection . | . . Artifact . | . . Weapon 8 | 3 5 Energy Gun 5 | 2 3 Energy Cannon . | . . Ballistic Gun 2 | 1 1 Ballistic Cannon 1 | . 1 Launcher . | . . Special Weapon . | . . Impact Weapon . | . . Slashing Weapon . | . . Piercing Weapon . | . . Special Melee Weapon . | . . Unidentified Prototypes . | . . Parts Lost 7 | . 7 Power 1 | . 1 Propulsion 2 | . 2 Utility 1 | . 1 Weapon 3 | . 3 Highest Loss Streak 6 | . 6 To Critical Strikes . | . . Average Slot Usage (%) 91 | . 91 Engine 13 | . 13 Treads 19 | . 19 Leg 3 | . 3 Device 12 | . 12 Storage 14 | . 14 Energy Gun 13 | . 13 Ballistic Gun 7 | . 7 Ballistic Cannon 6 | . 6 Peak Build Rating 11 | 7 11 Average Rating 8 | 5 8 On Entrance 3 | . 7 Naked Turns . | . . Heaviest Build 32 | 12 32 Greatest Support 46 | 40 46 Greatest Overweight (x) 2 | . 2 Average Overweight (x) . | . . Largest Inventory Capacity 15 | 8 15 Average Capacity 8 | 7 8 Most Carried 8 | 2 8 Average Carried 5 | 1 5 Final Capacity 15 | 8 15 Final Carried 8 | 2 8 Class Distribution -------------------- 100% | Mutant Dominant Class ---------------- Mutant | -10/Materials Resources | -11 -10 ----------- Run | Yrd Mat Matter Collected 476 | 280 196 Remotely . | . . Salvage Created 593 | 83 510 Parts 29 | 3 26 Haulers Intercepted 1 | . 1 Recyclers Shooed . | . . Parts Field Recycled . | . . Retrieved Matter . | . . Parts Self-Destructed . | . . Prevented . | . . Kills | -11 -10 ------- Run | Yrd Mat Combat Hostiles Destroyed 11 | . 11 Guns 10 | . 10 Cannons 1 | . 1 Classes Destroyed 8 | 2 6 Builder 1 | . 1 Tunneler 1 | 1 . Hauler 1 | . 1 Recycler 1 | 1 . Operator 1 | . 1 Watcher 2 | . 2 Swarmer 3 | . 3 Grunt 8 | . 8 Best Kill Streak 5 | 2 5 Combat Bots Only 3 | . 3 Max Kills in Single Turn 1 | 1 1 Gunslinging . | . . Exploded . | . . Melee . | . . Uniques/NPCs Destroyed . | . . Combat | -11 -10 -------- Run | Yrd Mat Hostile Shots Fired 140 | . 140 Missed 49 | . 49 Damage Taken 1063 | . 1063 Core 251 | . 251 Absorbed by Shields . | . . Core Remaining (%) 100 | 100 . Volleys Fired 80 | 13 67 Largest 2 | 1 2 Hottest 89 | 50 89 Shots Fired 145 | 13 132 Gun 125 | 13 112 Cannon 20 | . 20 Launcher . | . . Special . | . . Kinetic 67 | . 67 Thermal 56 | 13 43 Explosive . | . . Electromagnetic 22 | . 22 Robot Hit Streak 9 | 6 9 Robot Miss Streak 7 | 2 7 Penetration Max . | . . Secondary Targets 5 | . 5 Max Gunslinging Chain 1 | . 1 Shots Hit Robots 89 | 9 80 Core Hits 35 | 3 32 Critical Kills . | . . Critical Parts Destroyed 1 | . 1 Critical Strikes 3 | . 3 Burn 2 | . 2 Destroy 1 | . 1 Melee Attacks . | . . Impact . | . . Slashing . | . . Piercing . | . . Sneak Attacks . | . . Combat Hostiles . | . . Follow-up Attacks . | . . Damage Inflicted 1193 | 112 1081 Guns 862 | 112 750 Cannons 293 | . 293 Explosions 38 | . 38 Melee . | . . Ramming . | . . Kinetic 555 | . 555 Thermal 463 | 112 351 Explosive . | . . Electromagnetic 175 | . 175 Impact . | . . Slashing . | . . Piercing . | . . Highest Corruption . | . . Average Corruption . | . . Corruption Purged . | . . Corruption Blocked . | . . Overload Shots . | . . Overflow Damage 3 | . 3 Projectiles 3 | . 3 Explosions . | . . Melee . | . . Knockbacks 3 | . 3 Impact . | . . Kinetic 3 | . 3 Secondary . | . . Self-Inflicted Damage . | . . Shots . | . . Rammed . | . . Targets Rammed . | . . Kicked . | . . Crushed . | . . Highest Temperature 289 | 80 289 Average Temperature 78 | 35 84 Received Heat Transfer 534 | . 534 Siege Activations . | . . Robots Corrupted . | . . Combat Hostiles . | . . Parts Fried . | . . Impact Corruptions . | . . Robots Melted . | . . Combat Hostiles . | . . Parts Melted 4 | . 4 Heat Transferred 1406 | 333 1073 Parts Sabotaged . | . . Parts Stolen . | . . Parts Stripped . | . . Power Chain Reactions 1 | . 1 Alert | -11 -10 ------- Run | Yrd Mat Peak Influence 231 | 10 231 Initial 6 | . 6 Average 76 | 3 83 Maximum Alert Level 1 | . 1 Low Security (%) 87 | 100 86 Level 1 12 | . 13 Level 2 . | . . Level 3 . | . . Level 4 . | . . Level 5 . | . . High Security . | . . Max Security . | . . Squads Dispatched 2 | . 2 Investigation 2 | . 2 Extermination . | . . Reinforcement . | . . Assault . | . . Garrison . | . . Intercept . | . . Searches Triggered . | . . Construction Impeded . | . . Haulers Reinforced . | . . Active Scanning Responses . | . . Cargo Convoy Interrupts . | . . Stealth | -11 -10 --------- Run | Yrd Mat Distress Signals 1 | . 1 Communications Jammed . | . . Distress Signals . | . . Times Spotted 24 | . 24 Peak Tracking Total 5 | . 5 Tactical Retreats 3 | . 3 Traps | -11 -10 ------- Run | Yrd Mat Traps Triggered . | . . Indirectly . | . . Trap Hack Attempts . | . . Triggered . | . . Disarmed . | . . Reprogrammed . | . . Reused . | . . Traps Extracted . | . . Installed . | . . Triggered 1 | . 1 Machines | -11 -10 ---------- Run | Yrd Mat Machines Disabled 2 | . 2 Max in Single Turn 1 | . 1 Machines Repaired . | . . Machines Dismantled . | . . Machines Sabotaged . | . . Overloaded Fab Kills . | . . Hacking | -11 -10 --------- Run | Yrd Mat Machines Accessed 5 | . 5 Terminals 5 | . 5 Fabricators . | . . Repair Stations . | . . Recycling Units . | . . Scanalyzers . | . . Garrison Access . | . . Total Hacks 12 | . 12 Successful 6 | . 6 Failed 6 | . 6 Catastrophic 1 | . 1 Database Lockouts . | . . Manual 12 | . 12 Terminals 12 | . 12 Fabricators . | . . Repair Stations . | . . Recycling Units . | . . Scanalyzers . | . . Garrison Access . | . . Terminal Hacks . | . . Fabricator Hacks . | . . Repair Station Hacks . | . . Recycling Unit Hacks . | . . Scanalyzer . | . . Garrison Access Hacks . | . . Unauthorized Hacks 6 | . 6 Terminals 6 | . 6 Botnet 2 | . 2 Skim 4 | . 4 Fabricators . | . . Repair Stations . | . . Recycling Units . | . . Scanalyzers . | . . Garrison Access . | . . Data Cores Recovered 1 | . 1 Used 1 | . 1 Hacking Detections 5 | . 5 Full Trace Events 2 | . 2 Feedback Events . | . . Feedback Blocked . | . . Robot Schematics Acquired . | . . Robots Built . | . . Authchips . | . . Time . | . . Total Robot Build Rating . | . . Part Schematics Acquired . | . . Parts Built . | . . Authchips . | . . Time . | . . Total Part Build Rating . | . . Parts Repaired . | . . Time . | . . Parts Recycled . | . . Recycled Matter . | . . Retrieved Matter . | . . Retrieved Components . | . . Parts Scanalyzed . | . . Part Schematics Acquired . | . . Parts Damaged . | . . Bothacking | -11 -10 ------------ Run | Yrd Mat Used RIF Installer . | . . Robots Hacked . | . . Non-combat . | . . Combat . | . . Robot Hacks Applied . | . . Relay Couplers Released . | . . Fabnet Peak Effective % . | . . Robots Rewired . | . . Allies Hacked . | . . Hacks Repelled . | . . Allies | -11 -10 -------- Run | Yrd Mat Total Allies . | . . Largest Group . | . . Highest-Rated Group . | . . Highest-Rated Ally . | . . Total Orders . | . . Ally Attacks . | . . Total Damage . | . . Kills . | . . Allies Corrupted . | . . Allies Melted . | . . Intel | -11 -10 ------- Run | Yrd Mat Robot Analysis Total . | . . Derelict Logs Recovered . | . . Drone Launches . | . . Drone Recoveries . | . . Exploration | -11 -10 ------------- Run | Yrd Mat Turns Passed 1178 | 99 1079 Spaces Moved 524 | 42 482 Core 12 | 6 6 Treads 374 | 36 338 Legs 138 | . 138 Wheels . | . . Hover . | . . Flight . | . . Fastest Speed 50 | 50 100 Average Speed 166 | 144 168 Slowest Speed 190 | 160 190 Overloaded Moves . | . . Propulsion Burnouts . | . . Robots Hopped . | . . Cave-ins Triggered . | . . Exploration Rate (%) 40 | 5 76 Regions Visited 1 Branch Regions . Pre-discovered Areas . | . . Known Exits Taken . | . . Unknown Exits Taken 1 | 1 . Scrap Searched . | . . Spaces Dug . | . . Terrain Destroyed 3 | . 3 Melee . | . . Projectile . | . . AOE 3 | . 3 Terrain Rammed . | . . Walls Destroyed . | . . Machines Disabled . | . . Actions | -11 -10 --------- Run | Yrd Mat Total 694 | 64 630 Wait 50 | . 50 Move 523 | 41 482 Hop . | . . Pick Up 13 | 2 11 Fast Attach 15 | 7 8 Attach 1 | . 1 Detach . | . . Swap 4 | 1 3 Drop 8 | . 8 Fire 80 | 13 67 Melee . | . . Ram . | . . Kick . | . . Crush . | . . Escape Stasis . | . . Rewire . | . . Trap . | . . Miscellaneous . | . . Route ------- -11/Scrapyard -10/Materials (discovered 5 exits: [*Mat x3] / [*Min x2]) History --------- Turn | Location | Event 11 | -11/Scrapyard | Discovered new exit (range 15) 100 | -11/Scrapyard | Entered Materials 311 | -10/Materials | Build established: Mutant 344 | -10/Materials | Core integrity fell below 50% 363 | -10/Materials | Core integrity fell below 20% 399 | -10/Materials | Lost 6 parts (1p2n1u2w) 466 | -10/Materials | Discovered new exit (range 15) 653 | -10/Materials | Discovered new exit (range 15) 945 | -10/Materials | Discovered new exit (range 15) 1050 | -10/Materials | Discovered new exit (range 16) 1162 | -10/Materials | Discovered new exit (range 7) 1179 | -10/Materials | Destroyed by G-34 Mercenary with Small Laser Last Messages --------------- 00865_ Terminal disabled. 00883_ K-01 Serf cleans the Hadron Collector. 00924_ W-16 Scout destroyed. 00937_ Acquired 7 matter. 00945_ EXIT=FOUND 01096_ G-34 Mercenary knocked back. 01099_ G-34 Mercenary suffers critical hit (Burn). 01099_ G-34 Mercenary destroyed. 01105_ Acquired 29 matter. 01134_ Dropped Sml. Storage Unit. 01145_ A-02 Transporter destroyed. 01149_ Acquired 18 matter. 01162_ EXIT=FOUND 01165_ Connecting with Terminal... 01165_ ALERT: Suspicious activity at Terminal M001. Dispatching Investigation squad. 01171_ K-01 Serf destroyed. 01172_ K-01 Serf collects debris. 01173_ G-34 Mercenary knocked back. 01175_ K-01 Serf collects debris. Map ----- +----------------------------------------------------+ | # ## % #???############ #### | | + ## """ """ | | # ! ## """ %""" | | # # """ !! """ < | | ## + ! ! | | ## = # = % %!% | | ## # % ######## | | ## # #####??????# | | ## ### ######### #??????????# ##### | | ###########/##??????# #??????????# ????# | | ## %[ *% #??????# #??????????# ????# | | = # """ [ ""#??????? ???????????# ????# | | # "" T"#????????? ???????????# #???# | | + """ ! ""#??????# ???????????# #???# | | #=""" ! #?????? ???????????# #???# | | # """% !! #??????# ???????????# #???# | | ### = #??????# #??????????# #???# | | ??#############?###??# #??????????# ##### | | ????????????????? ?# ########+### ^^ | | ??????????????????"" #k | | ???????????????????" #* | | ???????????????????? +%=""" """ """ [ | | ?????????????????????#! "T" """ """ | | ?????????????????????# " " """ """ | | ?????????????????##### % !/! ]]= % | | ??????????????# t k @ /%/% ]= | | ?????????? k u =!! ]= % | | ??????????##### ###### ########### | | ??????????????####+### #????# #???????## | | ???????????????? ???# g#????#! !#???????# | | ?????????????? ????# < #????##!!!!##???????# | | ????????????? ??????#%g%#?????######????????# < | | ???????????? ???????#####???????????????????# | | ?????????????????????????????????????????????#"" | | ?????????????????????????????????????????????##"!! | | ??????????????????????????????????????????????##"" | | ???????????????????????????????????????????????### | | ?????????????????????????????????????????????????? | | ?????????????????????????????????????????????????? | | ?????????????????????????????????????????????????? | | ?????????????????????????????????????????????????? | | | | | | | | | | | | | | | | | | | +----------------------------------------------------+ Best States ------------- Heat Dissipation 25 Energy Generation 10 Energy Capacity 250 Matter Stores 300 Matter Capacity 300 Sight Range 16 Terrain Scan Density 10 Evasion (%) 40 Recoil Reduction 2 Item Schematics ----------------- None Robot Schematics ------------------ None Fabricated ------------ Nothing Alien Tech Used ----------------- None Achievements -------------- None Challenges ------------ None Game ------ Seed PrecisionCoreTerrabomb Manual? 0 Play Time 00:11:37 Cumulative 134.7 hours Start 2025.03.31 @ 20:17:55 End 2025.03.31 @ 20:28:12 Sessions 1 Manual Loads 0 Difficulty Rogue Special Mode None Game No. 269 Rogue 201 Adventurer 15 Explorer 53 Win Type - Total 3 Types 3/0/0/0/0/0/0/0/0 Lore% 39 Gallery% 61 Achievement% 47 Wizard Run 0 Options --------- Layout 0 ASCII 0 Keyboard 0 Movement Numpad Keybinds 0 Fullscreen 1 Font 18/SmallcapsGlow Map View 76x50 Zoom Use 0% Tactical HUD 1 Map Filters NONE Filters NONE Steam 1 RUN: 4efcb74e-0d22-4d31-a7fb-d1e320fb110d